bitfinex-derivatives/quotes_BNBF0:USTF0_20250220
["timestamp","ask_amount","ask_price","bid_price","bid_amount"]
[1740081279294,3.03366632,655.18,654.78,1.130437]
[1740081279491,5.2412482,655.17,654.78,1.130437]
[1740081279697,2.20758188,655.17,654.78,1.130437]
[1740081280794,2.20758188,655.17,654.68,1.130437]
[1740081280992,2.20758188,655.17,654.69,0.30548809]
[1740081281397,1.431,655.44,654.69,0.30548809]
[1740081281591,3.03344486,655.43,654.69,0.30548809]
[1740081281792,3.03344486,655.42,654.69,0.30548809]
[1740081281993,3.03344486,655.41,654.69,0.30548809]
[1740081282196,3.03344486,655.4,654.69,0.30548809]
[1740081282398,3.03344486,655.39,654.69,0.30548809]
[1740081282599,3.03344486,655.38,654.69,0.30548809]
[1740081282795,3.03344486,655.37,654.69,0.30548809]
[1740081283000,3.03344486,655.36,654.69,0.30548809]
[1740081283199,3.03344486,655.35,654.69,0.30548809]
[1740081283495,3.03344486,655.34,654.69,0.30548809]
[1740081283694,3.03344486,655.33,654.69,0.30548809]
[1740081283894,3.03344486,655.32,654.73,1.130437]
[1740081284094,3.03344486,655.31,654.74,0.30546476]
[1740081284295,3.03344486,655.3,654.74,0.30546476]
[1740081284502,3.03344486,655.29,654.74,0.30546476]
[1740081284799,3.03344486,655.28,654.74,0.30546476]
[1740081284999,3.03344486,655.27,654.74,0.30546476]
[1740081285202,3.03344486,655.26,654.74,0.30546476]
[1740081285395,5.24090951,655.25,654.74,0.30546476]
[1740081285597,3.03344486,655.24,654.74,0.30546476]
[1740081285901,3.03344486,655.23,654.74,0.30546476]
[1740081286200,3.03344486,655.22,654.74,0.30546476]
[1740081286399,3.03344486,655.21,654.74,0.30546476]
[1740081286597,3.03344486,655.2,654.74,0.30546476]
[1740081286794,2.20746465,655.25,654.74,0.30546476]
[1740081286795,3.03344486,655.19,654.81,1.130437]
[1740081286997,3.02840397,655.18,654.81,1.130437]
[1740081287200,3.02840397,655.17,654.81,1.130437]
[1740081287399,2.20746465,655.19,654.81,1.130437]
[1740081288902,1.246,655.46,654.81,1.130437]
[1740081289201,2.20762256,655.45,655.05,1.130437]
[1740081291198,2.20762256,655.44,655.05,1.130437]
[1740081291399,2.20762256,655.44,655.07,1.130437]
[1740081292900,2.20762256,655.43,655.07,1.130437]
[1740081294203,2.20762256,655.42,655.07,1.130437]
[1740081295612,2.20762256,655.41,655.07,1.130437]
[1740081297009,3.03505089,655.4,655.07,1.130437]
[1740081297206,3.03505089,655.39,655.07,1.130437]
[1740081297404,3.03505089,655.38,655.07,1.130437]
[1740081297604,3.03505089,655.37,655.07,1.130437]
[1740081297805,3.03505089,655.36,655.07,1.130437]
[1740081298109,3.03505089,655.35,655.07,1.130437]
[1740081298305,2.20762256,655.4,654.86,1.130437]
[1740081298306,3.03505089,655.34,654.86,1.130437]
[1740081298511,3.03505089,655.33,654.86,1.130437]
[1740081298710,3.03505089,655.32,654.86,1.130437]
[1740081298908,3.03505089,655.31,654.86,1.130437]
[1740081299108,3.03505089,655.3,654.86,1.130437]
[1740081299311,3.03505089,655.29,654.86,1.130437]
[1740081299509,3.03505089,655.28,654.86,1.130437]
[1740081299806,3.03505089,655.27,654.86,1.130437]
[1740081300010,3.03505089,655.26,654.86,1.130437]
[1740081300208,3.03505089,655.25,654.86,1.130437]
[1740081300414,3.03505089,655.24,654.86,1.130437]
[1740081300614,3.03505089,655.23,654.86,1.130437]
[1740081300814,3.03505089,655.22,654.86,1.130437]
[1740081301011,3.03505089,655.21,654.86,1.130437]
[1740081301216,3.03505089,655.2,654.86,1.130437]
[1740081301414,2.20762256,655.22,654.86,1.130437]
[1740081301615,3.03575894,655.21,654.86,1.130437]
[1740081301817,3.03575894,655.2,654.86,1.130437]
[1740081302011,3.03575894,655.19,654.86,1.130437]
[1740081302216,3.03575894,655.18,654.86,1.130437]
[1740081302416,3.03575894,655.17,654.86,1.130437]
[1740081302615,3.03575894,655.16,654.86,1.130437]
[1740081302811,2.20762256,655.17,654.86,1.130437]
[1740081303014,3.03687827,655.16,654.86,1.130437]
[1740081303214,2.20762256,655.17,654.86,1.130437]
[1740081303417,3.03739249,655.16,654.86,1.130437]
[1740081303614,2.20762256,655.17,654.86,1.130437]
[1740081303818,3.03740426,655.16,654.86,1.130437]
[1740081304014,2.20762256,655.17,654.86,1.130437]
[1740081304217,3.03740636,655.16,654.86,1.130437]
[1740081304420,1.246,655.46,654.86,1.130437]
[1740081304612,3.03795965,655.45,654.84,1.130437]
[1740081304817,3.03795965,655.44,654.84,1.130437]
[1740081305013,3.03795965,655.43,654.84,1.130437]
[1740081305213,3.03795965,655.42,654.84,1.130437]
[1740081305414,3.03795965,655.41,654.84,1.130437]
[1740081305618,3.03795965,655.4,654.84,1.130437]
[1740081305818,3.03795965,655.39,654.84,1.130437]
[1740081306018,3.03795965,655.38,654.84,1.130437]
[1740081306216,3.03795965,655.37,654.84,1.130437]
[1740081306419,3.03795965,655.36,654.84,1.130437]
[1740081306718,3.03795965,655.35,654.84,1.130437]
[1740081306916,3.03795965,655.34,654.85,1.130437]
[1740081307114,3.03795965,655.33,654.85,1.130437]
[1740081307315,3.03795965,655.32,654.85,1.130437]
[1740081307523,3.03795965,655.31,654.85,1.130437]
[1740081307723,3.03795965,655.3,654.85,1.130437]
[1740081308017,5.24886293,655.29,654.85,1.130437]
[1740081308323,3.03795965,655.28,654.85,1.130437]
[1740081308524,3.03795965,655.27,654.85,1.130437]
[1740081308727,3.03795965,655.26,654.85,1.130437]
[1740081309024,3.03795965,655.25,654.85,1.130437]
[1740081309218,3.03795965,655.24,654.85,1.130437]
[1740081309422,3.03795965,655.23,654.85,1.130437]
[1740081309727,3.03795965,655.22,654.85,1.130437]
[1740081310028,2.21090328,655.24,654.74,0.30546476]
[1740081310029,3.03795965,655.21,654.74,0.30546476]
[1740081310218,3.03795965,655.2,654.74,0.30546476]
[1740081310423,3.03795965,655.19,654.74,0.30546476]
[1740081310621,3.03795965,655.18,654.74,0.30546476]
[1740081310826,5.24886293,655.17,654.74,0.30546476]
[1740081311022,3.03795965,655.16,654.74,0.30546476]
[1740081311227,3.03795965,655.15,654.74,0.30546476]
[1740081311424,3.03795965,655.14,654.74,0.30546476]
[1740081311630,3.03795965,655.13,654.74,0.30546476]
[1740081311831,3.03795965,655.12,654.74,0.30546476]
[1740081312033,3.03795965,655.11,654.74,0.30546476]
[1740081312331,3.03795965,655.1,654.74,0.30546476]
[1740081312525,3.03795965,655.09,654.74,0.30546476]
[1740081312729,3.03795965,655.08,654.74,0.30546476]
[1740081312927,3.03795965,655.07,654.74,0.30546476]
[1740081313232,3.03795965,655.06,654.74,0.30546476]
[1740081313432,3.03795965,655.05,654.74,0.30546476]
[1740081313632,3.03795965,655.04,654.74,0.30546476]
[1740081313932,3.03795965,655.03,654.74,0.30546476]
[1740081314133,3.03795965,655.02,654.74,0.30546476]
[1740081314327,3.03795965,655.01,654.74,0.30546476]
[1740081314530,3.03795965,655.0,654.74,0.30546476]
[1740081314731,3.03795965,654.99,654.74,0.30546476]
[1740081314932,3.03795965,654.98,654.74,0.30546476]
[1740081315132,3.03795965,654.97,654.74,0.30546476]
[1740081315334,3.03795965,654.96,654.74,0.30546476]
[1740081315533,3.03795965,654.95,654.74,0.30546476]
[1740081315737,2.21090328,655.03,654.74,0.30546476]
[1740081315928,3.03787218,655.02,654.74,0.30546476]
[1740081316127,3.03787218,655.01,654.74,0.30546476]
[1740081316333,3.03787218,655.0,654.74,0.30546476]
[1740081316534,2.21090328,655.0,654.74,0.30546476]
[1740081317335,2.364,655.48,654.74,0.30546476]
[1740081317534,3.03669159,655.47,654.74,0.30546476]
[1740081317735,5.24699383,655.46,654.74,0.30546476]
[1740081318035,3.03669159,655.45,654.74,0.30546476]
[1740081318229,3.03669159,655.44,654.74,0.30546476]
[1740081318433,3.03669159,655.43,654.74,0.30546476]
[1740081318732,3.03669159,655.42,654.74,0.30546476]
[1740081318936,3.03669159,655.41,654.74,0.30546476]
[1740081319137,3.03669159,655.4,654.74,0.30546476]
[1740081319338,3.03669159,655.39,654.74,0.30546476]
[1740081319538,3.03669159,655.38,654.74,0.30546476]
[1740081319737,3.03669159,655.37,654.74,0.30546476]
[1740081319937,3.03669159,655.36,654.74,0.30546476]
[1740081320135,3.03669159,655.35,654.74,0.30546476]
[1740081320333,3.03669159,655.34,654.74,0.30546476]
[1740081320539,3.03669159,655.33,654.74,0.30546476]
[1740081320735,3.03669159,655.32,654.74,0.30546476]
[1740081320934,3.03669159,655.31,654.74,0.30546476]
[1740081321137,3.03669159,655.3,654.74,0.30546476]
[1740081321339,2.21030224,655.39,654.74,0.30546476]
[1740081321340,3.03669159,655.29,654.74,0.30546476]
[1740081321539,3.03669159,655.28,654.74,0.30546476]
[1740081321735,3.03669159,655.27,654.74,0.30546476]
[1740081321939,3.03669159,655.26,654.74,0.30546476]
[1740081322134,3.03669159,655.25,654.74,0.30546476]
[1740081322335,3.03669159,655.24,654.35,1.130437]
[1740081322535,2.21030224,655.28,654.35,1.130437]
[1740081322536,3.03669159,655.23,654.36,0.30564215]
[1740081322738,3.03669159,655.22,654.36,0.30564215]
[1740081322935,3.03669159,655.21,654.36,0.30564215]
[1740081323136,3.03669159,655.2,654.36,0.30564215]
[1740081323442,3.03669159,655.19,654.36,0.30564215]
[1740081323642,3.03669159,655.18,654.36,0.30564215]
[1740081323840,3.03669159,655.17,654.36,0.30564215]
[1740081324041,3.03669159,655.16,654.36,0.30564215]
[1740081324342,3.03669159,655.15,654.38,1.130437]
[1740081324542,3.03669159,655.14,654.38,1.130437]
[1740081324735,3.03669159,655.13,654.38,1.130437]
[1740081324935,3.03669159,655.12,654.38,1.130437]
[1740081325139,3.03669159,655.11,654.38,1.130437]
[1740081325442,3.03669159,655.1,654.38,1.130437]
[1740081325640,3.03669159,655.09,654.38,1.130437]
[1740081325837,3.03669159,655.08,654.38,1.130437]
[1740081326038,3.03669159,655.07,654.38,1.130437]
[1740081326242,3.03669159,655.06,654.38,1.130437]
[1740081326435,3.03669159,655.05,654.38,1.130437]
[1740081326640,3.03669159,655.04,654.4,1.130437]
[1740081326836,3.03669159,655.03,654.4,1.130437]
[1740081327037,3.03669159,655.02,654.4,1.130437]
[1740081327243,3.03669159,655.01,654.4,1.130437]
[1740081327443,3.03669159,655.0,654.4,1.130437]
[1740081327638,3.03669159,654.99,654.4,1.130437]
[1740081327839,3.03669159,654.98,654.4,1.130437]
[1740081328042,3.03669159,654.97,654.4,1.130437]
[1740081328244,3.03669159,654.96,654.4,1.130437]
[1740081328443,2.21030224,655.07,654.4,1.130437]
[1740081328444,3.03669159,654.95,654.4,1.130437]
[1740081328643,3.03669159,654.94,654.4,1.130437]
[1740081328845,3.03669159,654.93,654.4,1.130437]
[1740081329046,3.03669159,654.92,654.4,1.130437]
[1740081329248,3.03669159,654.91,654.4,1.130437]
[1740081329546,3.03669159,654.9,654.4,1.130437]
[1740081329745,3.03669159,654.89,654.4,1.130437]
[1740081329944,3.03669159,654.88,654.4,1.130437]
[1740081330141,3.03669159,654.87,654.4,1.130437]
[1740081330345,3.03669159,654.86,654.4,1.130437]
[1740081330544,3.03669159,654.85,654.4,1.130437]
[1740081330744,3.03669159,654.84,654.4,1.130437]
[1740081330944,3.03669159,654.83,654.4,1.130437]
[1740081331143,2.21030224,654.88,654.4,1.130437]
[1740081331340,3.02932652,654.87,654.4,1.130437]
[1740081331549,3.02932652,654.86,654.39,1.130437]
[1740081331749,3.02932652,654.85,654.39,1.130437]
[1740081331947,3.02932652,654.84,654.39,1.130437]
[1740081332149,3.02932652,654.83,654.39,1.130437]
[1740081332345,2.21030224,654.85,654.39,1.130437]
[1740081332544,3.02889946,654.84,654.39,1.130437]
[1740081332749,2.21030224,654.85,654.39,1.130437]
[1740081332750,3.02889946,654.83,654.39,1.130437]
[1740081332945,2.21030224,654.85,654.39,1.130437]
[1740081333148,3.02892385,654.84,654.39,1.130437]
[1740081333343,3.02892385,654.83,654.39,1.130437]
[1740081333545,2.21030224,654.83,654.39,1.130437]
[1740081334653,3.02819692,654.82,654.39,1.130437]
[1740081334951,2.21030224,654.83,654.39,1.130437]
[1740081335152,0.641,655.12,654.39,1.130437]
[1740081335353,3.02788612,655.11,654.39,1.130437]
[1740081335548,3.02788612,655.1,654.39,1.130437]
[1740081335753,3.02788612,655.09,654.39,1.130437]
[1740081335950,3.02788612,655.08,654.39,1.130437]
[1740081336150,3.02788612,655.07,654.39,1.130437]
[1740081336350,3.02788612,655.06,654.39,1.130437]
[1740081336551,3.02788612,655.05,654.39,1.130437]
[1740081336751,3.02788612,655.04,654.39,1.130437]
[1740081337052,3.02788612,655.03,654.39,1.130437]
[1740081337253,3.02788612,655.02,654.39,1.130437]
[1740081337553,3.02788612,655.01,654.36,0.30564215]
[1740081337852,3.02788612,655.0,654.36,0.30564215]
[1740081338053,3.02788612,654.99,654.36,0.30564215]
[1740081338246,3.02788612,654.98,654.36,0.30564215]
[1740081338450,3.02788612,654.97,654.36,0.30564215]
[1740081338650,3.02788612,654.96,654.36,0.30564215]
[1740081338851,3.02788612,654.95,654.36,0.30564215]
[1740081339152,3.02788612,654.94,654.36,0.30564215]
[1740081339352,3.02788612,654.93,654.36,0.30564215]
[1740081339547,3.02788612,654.92,654.36,0.30564215]
[1740081339748,3.02788612,654.91,654.36,0.30564215]
[1740081339953,2.20396335,654.92,654.36,0.30564215]
[1740081339954,3.02788612,654.9,654.36,0.30564215]
[1740081340150,3.02788612,654.89,654.36,0.30564215]
[1740081340351,3.02788612,654.88,654.36,0.30564215]
[1740081340554,3.02788612,654.87,654.36,0.30564215]
[1740081340855,3.02788612,654.86,654.36,0.30564215]
[1740081341053,3.02788612,654.85,654.36,0.30564215]
[1740081341254,3.02788612,654.84,654.36,0.30564215]
[1740081341455,3.02788612,654.83,654.36,0.30564215]
[1740081341652,3.02695594,654.82,654.36,0.30564215]
[1740081341850,2.20396335,654.84,654.36,0.30564215]
[1740081342050,3.0269343,654.83,654.53,1.130437]
[1740081342254,2.20396335,654.84,654.53,1.130437]
[1740081342448,3.0268822,654.83,654.53,1.130437]
[1740081342656,2.20396335,654.84,654.53,1.130437]
[1740081342954,3.0268822,654.83,654.53,1.130437]
[1740081343148,2.20396335,654.84,654.53,1.130437]
[1740081343352,3.02685432,654.83,654.53,1.130437]
[1740081343550,2.20396335,654.83,654.53,1.130437]
[1740081344355,3.0269026,654.82,654.53,1.130437]
[1740081344556,2.20396335,654.83,654.53,1.130437]
[1740081345056,3.02689768,654.82,654.58,1.130437]
[1740081345256,0.641,655.12,654.58,1.130437]
[1740081345555,3.02689637,655.11,654.58,1.130437]
[1740081345756,3.02689637,655.1,654.58,1.130437]
[1740081345955,3.02689637,655.09,654.58,1.130437]
[1740081346150,3.02689637,655.08,654.58,1.130437]
[1740081346351,3.02689637,655.07,654.58,1.130437]
[1740081346549,3.02689637,655.06,654.58,1.130437]
[1740081346750,3.02689637,655.05,654.58,1.130437]
[1740081346950,3.02689637,655.04,654.58,1.130437]
[1740081347252,5.23013191,655.03,654.58,1.130437]
[1740081347457,3.02689637,655.02,654.58,1.130437]
[1740081347752,3.02689637,655.01,654.58,1.130437]
[1740081347956,3.02689637,655.0,654.6,1.130437]
[1740081348153,3.02689637,654.99,654.6,1.130437]
[1740081348350,3.02689637,654.98,654.6,1.130437]
[1740081348554,3.02689637,654.97,654.6,1.130437]
[1740081348752,3.02689637,654.96,654.6,1.130437]
[1740081349057,3.02689637,654.95,654.6,1.130437]
[1740081349257,3.02689637,654.94,654.6,1.130437]
[1740081349458,3.02689637,654.93,654.6,1.130437]
[1740081349650,3.02689637,654.92,654.6,1.130437]
[1740081349856,3.02689637,654.91,654.6,1.130437]
[1740081350054,3.02689637,654.9,654.6,1.130437]
[1740081350252,3.02689637,654.89,654.6,1.130437]
[1740081350459,3.02689637,654.88,654.6,1.130437]
[1740081350759,3.02689637,654.87,654.41,1.130437]
[1740081350958,3.02689637,654.86,654.41,1.130437]
[1740081351261,3.02689637,654.85,654.41,1.130437]
[1740081351460,3.02689637,654.84,654.41,1.130437]
[1740081351655,3.02689637,654.83,654.41,1.130437]
[1740081351857,3.02689637,654.82,654.41,1.130437]
[1740081352054,3.02689637,654.81,654.41,1.130437]
[1740081352359,5.23013191,654.8,654.41,1.130437]
[1740081352559,2.20323554,654.8,654.41,1.130437]
[1740081353758,1.394,655.27,654.41,1.130437]
[1740081353954,3.02853702,655.26,654.41,1.130437]
[1740081354159,3.02853702,655.25,654.41,1.130437]
[1740081354361,3.02853702,655.24,654.41,1.130437]
[1740081354661,3.02853702,655.23,654.42,1.130437]
[1740081354859,3.02853702,655.22,654.42,1.130437]
[1740081355055,3.02853702,655.21,654.42,1.130437]
[1740081355260,3.02853702,655.2,654.42,1.130437]
[1740081355560,0.641,655.22,654.42,1.130437]
[1740081355561,3.02853702,655.19,654.42,1.130437]
[1740081355760,3.02853702,655.18,654.42,1.130437]
[1740081355961,3.02853702,655.17,654.42,1.130437]
[1740081356162,3.02853702,655.16,654.42,1.130437]
[1740081356365,3.02853702,655.15,654.42,1.130437]
[1740081356662,3.02853702,655.14,654.42,1.130437]
[1740081356856,3.02853702,655.13,654.42,1.130437]
[1740081357059,3.02853702,655.12,654.41,1.130437]
[1740081357260,3.02853702,655.11,654.41,1.130437]
[1740081357457,3.02853702,655.1,654.41,1.130437]
[1740081357657,3.02853702,655.09,654.41,1.130437]
[1740081357858,3.02853702,655.08,654.41,1.130437]
[1740081358164,3.02853702,655.07,654.41,1.130437]
[1740081358364,3.02853702,655.06,654.41,1.130437]
[1740081358564,3.02853702,655.05,654.41,1.130437]
[1740081358764,3.02853702,655.04,654.41,1.130437]
[1740081358964,3.02853702,655.03,654.41,1.130437]
[1740081359164,3.02853702,655.02,654.41,1.130437]
[1740081359362,3.02853702,655.01,654.41,1.130437]
[1740081359559,3.02853702,655.0,654.41,1.130437]
[1740081359763,3.02853702,654.99,654.47,1.130437]
[1740081359966,3.02853702,654.98,654.47,1.130437]
[1740081360166,3.02853702,654.97,654.47,1.130437]
[1740081360366,3.02853702,654.96,654.47,1.130437]
[1740081360663,3.02853702,654.95,654.47,1.130437]
[1740081360867,3.02853702,654.94,654.47,1.130437]
[1740081361063,3.02853702,654.93,654.47,1.130437]
[1740081361264,3.02853702,654.92,654.47,1.130437]
[1740081361464,3.02853702,654.91,654.47,1.130437]
[1740081361671,3.02853702,654.9,654.47,1.130437]
[1740081361866,3.02853702,654.89,654.47,1.130437]
[1740081362066,3.02853702,654.88,654.47,1.130437]
[1740081362266,3.02853702,654.87,654.47,1.130437]
[1740081362467,3.02853702,654.86,654.47,1.130437]
[1740081362668,3.02853702,654.85,654.47,1.130437]
[1740081362871,3.02853702,654.84,654.46,1.130437]
[1740081363065,3.02853702,654.83,654.46,1.130437]
[1740081363268,3.02853702,654.82,654.46,1.130437]
[1740081363568,3.02853702,654.81,654.46,1.130437]
[1740081363768,3.02853702,654.8,654.46,1.130437]
[1740081363966,3.02853702,654.79,654.46,1.130437]
[1740081364168,2.20448406,654.84,654.46,1.130437]
[1740081364370,3.03483427,654.83,654.46,1.130437]
[1740081364571,3.03483427,654.82,654.46,1.130437]
[1740081364770,3.03483427,654.82,654.61,1.130437]
[1740081364771,3.03483427,654.81,654.61,1.130437]
[1740081364971,3.03483427,654.8,654.61,1.130437]
[1740081365171,3.03483427,654.79,654.61,1.130437]
[1740081365366,3.03483427,654.78,654.61,1.130437]
[1740081365571,3.03483427,654.77,654.61,1.130437]
[1740081365772,2.20448406,654.82,654.61,1.130437]
[1740081365974,3.03590249,654.81,654.61,1.130437]
[1740081366173,3.03590249,654.8,654.61,1.130437]
[1740081366468,5.24038655,654.79,654.61,1.130437]
[1740081366774,3.03590249,654.78,654.61,1.130437]
[1740081366966,3.03590249,654.77,654.61,1.130437]
[1740081367172,3.03590249,654.76,654.61,1.130437]
[1740081367371,3.03590249,654.75,654.61,1.130437]
[1740081367672,3.03590249,654.74,654.61,1.130437]
[1740081367874,3.03590249,654.73,654.61,1.130437]
[1740081368068,3.03590249,654.72,654.61,1.130437]
[1740081368269,1.23,655.2,654.61,1.130437]
[1740081368470,3.03972089,655.19,654.61,1.130437]
[1740081368674,3.03972089,655.18,654.61,1.130437]
[1740081368867,3.03972089,655.17,654.61,1.130437]
[1740081369069,3.03972089,655.16,654.61,1.130437]
[1740081369368,3.03972089,655.15,654.61,1.130437]
[1740081369570,3.03972089,655.14,654.61,1.130437]
[1740081369770,3.03972089,655.13,654.61,1.130437]
[1740081369967,3.03972089,655.12,654.61,1.130437]
[1740081370173,3.03972089,655.11,654.61,1.130437]
[1740081370369,5.25228021,655.1,654.61,1.130437]
[1740081370572,5.25228021,655.1,654.36,1.44177612]
[1740081370573,3.03972089,655.09,654.49,1.130437]
[1740081370768,3.03972089,655.08,654.49,1.130437]
[1740081370972,3.03972089,655.07,654.49,1.130437]
[1740081371171,3.03972089,655.06,654.49,1.130437]
[1740081371369,3.03972089,655.05,654.49,1.130437]
[1740081371568,3.03972089,655.04,654.49,1.130437]
[1740081371869,3.03972089,655.03,654.49,1.130437]
[1740081372075,3.03972089,655.02,654.49,1.130437]
[1740081372274,3.03972089,655.01,654.49,1.130437]
[1740081372474,3.03972089,655.0,654.49,1.130437]
[1740081372674,3.03972089,654.99,654.49,1.130437]
[1740081372874,3.03972089,654.98,654.49,1.130437]
[1740081373075,3.03972089,654.97,654.49,1.130437]
[1740081373274,5.25228021,654.96,654.49,1.130437]
[1740081373575,3.03972089,654.95,654.49,1.130437]
[1740081373775,3.03972089,654.94,654.49,1.130437]
[1740081373971,3.03972089,654.93,654.36,0.30564215]
[1740081374173,3.03972089,654.92,654.36,0.30564215]
[1740081374371,3.03972089,654.91,654.36,0.30564215]
[1740081374574,3.03972089,654.9,654.36,0.30564215]
[1740081374774,3.03972089,654.89,654.36,0.30564215]
[1740081374973,3.03972089,654.88,654.36,0.30564215]
[1740081375173,3.03972089,654.87,654.36,0.30564215]
[1740081375372,3.03972089,654.86,654.36,0.30564215]
[1740081375575,3.03972089,654.85,654.36,0.30564215]
[1740081375775,3.03972089,654.84,654.36,0.30564215]
[1740081375977,3.03972089,654.83,654.36,0.30564215]
[1740081376172,3.03972089,654.82,654.36,0.30564215]
[1740081376377,3.03972089,654.81,654.36,0.30564215]
[1740081376574,3.03972089,654.8,654.36,0.30564215]
[1740081376778,2.21255932,654.8,654.36,0.30564215]
[1740081378774,2.21255932,654.79,654.36,0.30564215]
[1740081380675,2.21255932,654.78,654.36,0.30564215]
[1740081382283,2.21255932,654.77,654.36,0.30564215]
[1740081383885,2.21255932,654.76,654.36,0.30564215]
[1740081385782,2.21255932,654.75,654.36,0.30564215]
[1740081386688,3.0427261,654.74,654.36,0.30564215]
[1740081386890,3.0427261,654.73,654.36,0.30564215]
[1740081387187,3.0427261,654.72,654.36,0.30564215]
[1740081387382,3.0427261,654.71,654.36,0.30564215]
[1740081387581,3.0427261,654.7,654.36,0.30564215]
[1740081387889,3.0427261,654.69,654.36,0.30564215]
[1740081388083,3.0427261,654.68,654.36,0.30564215]
[1740081388284,3.0427261,654.67,654.36,0.30564215]
[1740081388488,2.21255932,654.7,654.36,0.30564215]
[1740081388489,3.0427261,654.66,654.36,0.30564215]
[1740081388690,3.0427261,654.65,654.36,0.30564215]
[1740081388889,3.0427261,654.64,654.36,0.30564215]
[1740081389092,3.04227172,654.63,654.36,0.30564215]
[1740081389292,2.21255932,654.7,654.36,0.30564215]
[1740081389594,3.04198564,654.69,654.36,0.30564215]
[1740081389891,5.25454496,654.68,654.36,0.30564215]
[1740081390087,3.04198564,654.67,654.36,0.30564215]
[1740081390391,3.04198564,654.66,654.36,0.30564215]
[1740081390587,3.04198564,654.65,654.36,0.30564215]
[1740081390789,3.04198564,654.64,654.36,0.30564215]
[1740081390994,2.21255932,654.68,654.36,0.30564215]
[1740081391191,3.04167952,654.67,654.36,0.30564215]
[1740081391388,3.04167952,654.66,654.36,0.30564215]
[1740081391583,3.04167952,654.65,654.36,0.30564215]
[1740081391787,3.04167952,654.64,654.39,1.130437]
[1740081392091,2.21403244,654.66,654.39,1.130437]
[1740081392285,3.04146408,654.65,654.39,1.130437]
[1740081392486,3.04146408,654.64,654.39,1.130437]
[1740081392690,3.04146408,654.63,654.39,1.130437]
[1740081392886,2.21403244,654.66,654.39,1.130437]
[1740081393088,3.04124346,654.65,654.39,1.130437]
[1740081393292,3.04124346,654.64,654.39,1.130437]
[1740081393494,3.04124346,654.63,654.39,1.130437]
[1740081393688,3.04124346,654.62,654.39,1.130437]
[1740081393884,2.21403244,654.64,654.36,0.30564215]
[1740081394091,3.04101627,654.63,654.36,0.30564215]
[1740081394289,2.21403244,654.64,654.36,0.30564215]
[1740081394488,3.04100165,654.63,654.36,0.30564215]
[1740081394688,2.21403244,654.64,654.36,0.30564215]
[1740081394886,3.04080205,654.63,654.36,0.30564215]
[1740081395088,2.21403244,654.64,654.36,0.30564215]
[1740081395389,3.04079686,654.63,654.36,0.30564215]
[1740081395594,4.257,655.1,654.36,0.30564215]
[1740081395789,5.25408636,655.09,654.36,0.30564215]
[1740081396095,3.04062736,655.08,654.36,0.30564215]
[1740081396291,3.04062736,655.07,654.36,0.30564215]
[1740081396491,3.04062736,655.06,654.36,0.30564215]
[1740081396787,3.04062736,655.05,654.36,0.30564215]
[1740081396992,2.213459,655.09,654.36,0.30564215]
[1740081396993,3.04062736,655.04,654.36,0.30564215]
[1740081397191,3.04062736,655.03,654.36,0.30564215]
[1740081397393,3.04062736,655.02,654.36,0.30564215]
[1740081397593,3.04062736,655.01,654.36,0.30564215]
[1740081397796,3.04062736,655.0,654.36,0.30564215]
[1740081398095,3.04062736,654.99,654.36,0.30564215]
[1740081398296,3.04062736,654.98,654.36,0.30564215]
[1740081398595,3.04062736,654.97,654.36,0.30564215]
[1740081398795,3.04062736,654.96,654.36,0.30564215]
[1740081398998,3.04062736,654.95,654.36,0.30564215]
[1740081399194,3.04062736,654.94,654.36,0.30564215]
[1740081399391,3.04062736,654.93,654.36,0.30564215]
[1740081399591,3.04062736,654.92,654.36,0.30564215]
[1740081399790,3.04062736,654.91,654.36,0.30564215]
[1740081399992,3.04062736,654.9,654.36,0.30564215]
[1740081400198,3.04062736,654.89,654.36,0.30564215]
[1740081400397,3.04062736,654.88,654.36,0.30564215]
[1740081400595,3.04062736,654.87,654.36,0.30564215]
[1740081400793,3.04062736,654.86,654.36,0.30564215]
[1740081400993,3.04062736,654.85,654.36,0.30564215]
[1740081401195,2.213459,654.87,654.36,0.30564215]
[1740081401196,3.04062736,654.84,654.36,0.30564215]
[1740081401398,3.04062736,654.83,654.36,0.30564215]
[1740081401694,3.04062736,654.82,654.36,0.30564215]
[1740081401897,3.04062736,654.81,654.36,0.30564215]
[1740081402098,3.04062736,654.8,654.36,0.30564215]
[1740081402399,3.04062736,654.79,654.36,0.30564215]
[1740081402593,3.04062736,654.78,654.36,0.30564215]
[1740081402799,3.04062736,654.77,654.36,0.30564215]
[1740081402998,3.04062736,654.76,654.36,0.30564215]
[1740081403192,3.04062736,654.75,654.36,0.30564215]
[1740081403395,3.04062736,654.74,654.4,1.130437]
[1740081403596,3.04062736,654.73,654.4,1.130437]